[Event "*** Titled Tuesday Blitz"]
[Site "Chess.com"]
[Date "2020.05.12"]
[Round "4"]
[White "S_Kalvaitis"]
[Black "Morshynska"]
[Result "0-1"]
[WhiteElo "2387"]
[BlackElo "2181"]
[TimeControl "180+1"]
[EndTime "10:39:54 PDT"]
[Termination "Morshynska won by checkmate"]

1. e4 {[%clk 0:03:00.9]} 1... Nc6 {[%clk 0:02:58.7]} 2. Nc3 {[%clk 0:02:59.5]}
2... d6 {[%clk 0:02:56.8]} 3. d4 {[%clk 0:02:58.9]} 3... g6 {[%clk 0:02:55.7]}
4. f4 {[%clk 0:02:57.3]} 4... Bg7 {[%clk 0:02:53]} 5. Be3 {[%clk 0:02:57.4]}
5... Nf6 {[%clk 0:02:43.9]} 6. Nf3 {[%clk 0:02:52.6]} 6... O-O {[%clk
0:02:36.8]} 7. e5 {[%clk 0:02:43.7]} 7... Ne8 {[%clk 0:02:17.8]} 8. Qd2 {[%clk
0:02:41.8]} 8... a6 {[%clk 0:02:04.7]} 9. O-O-O {[%clk 0:02:38.8]} 9... Bg4
{[%clk 0:01:58.4]} 10. Ne4 {[%clk 0:02:33.7]} 10... d5 {[%clk 0:01:39.5]} 11.
Nf2 {[%clk 0:02:30.7]} 11... Bxf3 {[%clk 0:01:34.4]} 12. gxf3 {[%clk 0:02:31.6]}
12... e6 {[%clk 0:01:13.3]} 13. h4 {[%clk 0:02:30.6]} 13... h5 {[%clk
0:01:12.8]} 14. Bd3 {[%clk 0:02:24.8]} 14... Ne7 {[%clk 0:01:12.1]} 15. f5
{[%clk 0:02:03.3]} 15... Nxf5 {[%clk 0:01:06.4]} 16. Bxf5 {[%clk 0:02:03]} 16...
exf5 {[%clk 0:01:07.3]} 17. Nd3 {[%clk 0:01:56.1]} 17... c6 {[%clk 0:00:55]} 18.
Bg5 {[%clk 0:01:49.1]} 18... Qc8 {[%clk 0:00:48.9]} 19. Be7 {[%clk 0:01:20.1]}
19... Nc7 {[%clk 0:00:46.6]} 20. Bxf8 {[%clk 0:01:20]} 20... Bxf8 {[%clk
0:00:40.6]} 21. Rdg1 {[%clk 0:01:12.4]} 21... Kh7 {[%clk 0:00:40.1]} 22. Kb1
{[%clk 0:01:11.8]} 22... Ne6 {[%clk 0:00:36]} 23. c3 {[%clk 0:01:08.3]} 23...
Bh6 {[%clk 0:00:33.9]} 24. Qc2 {[%clk 0:01:06.7]} 24... b6 {[%clk 0:00:30]} 25.
Nf2 {[%clk 0:01:04.3]} 25... c5 {[%clk 0:00:25.9]} 26. dxc5 {[%clk 0:01:04.5]}
26... bxc5 {[%clk 0:00:25.3]} 27. Nh3 {[%clk 0:01:04.8]} 27... Qb7 {[%clk
0:00:22.3]} 28. Ng5+ {[%clk 0:01:04.2]} 28... Nxg5 {[%clk 0:00:20.1]} 29. hxg5
{[%clk 0:01:03.6]} 29... Bg7 {[%clk 0:00:20.3]} 30. f4 {[%clk 0:00:56.4]} 30...
Rb8 {[%clk 0:00:15.3]} 31. Rh2 {[%clk 0:00:55.3]} 31... Kg8 {[%clk 0:00:13.5]}
32. Ka1 {[%clk 0:00:51.9]} 32... a5 {[%clk 0:00:13.6]} 33. Re1 {[%clk
0:00:51.5]} 33... Qc6 {[%clk 0:00:11.6]} 34. Rhe2 {[%clk 0:00:45.9]} 34... Re8
{[%clk 0:00:11.6]} 35. Qd3 {[%clk 0:00:41.7]} 35... a4 {[%clk 0:00:11.7]} 36. a3
{[%clk 0:00:41.1]} 36... Bf8 {[%clk 0:00:11.2]} 37. e6 {[%clk 0:00:39.7]} 37...
Rxe6 {[%clk 0:00:10.3]} 38. Rxe6 {[%clk 0:00:39.1]} 38... fxe6 {[%clk
0:00:11.2]} 39. Qe3 {[%clk 0:00:38.6]} 39... Kf7 {[%clk 0:00:11.2]} 40. Qe5
{[%clk 0:00:38]} 40... Bg7 {[%clk 0:00:09.8]} 41. Qb8 {[%clk 0:00:37.8]} 41...
d4 {[%clk 0:00:09.3]} 42. cxd4 {[%clk 0:00:34.4]} 42... Bxd4 {[%clk 0:00:09.8]}
43. Qa7+ {[%clk 0:00:32]} 43... Kg8 {[%clk 0:00:10]} 44. Qe7 {[%clk 0:00:28.2]}
44... h4 {[%clk 0:00:06.2]} 45. Qd8+ {[%clk 0:00:20.5]} 45... Kf7 {[%clk
0:00:05.2]} 46. Qf6+ {[%clk 0:00:20.3]} 46... Bxf6 {[%clk 0:00:04.2]} 47. gxf6
{[%clk 0:00:20.9]} 47... Kxf6 {[%clk 0:00:04.5]} 48. Rd1 {[%clk 0:00:20.6]}
48... Qe4 {[%clk 0:00:03.8]} 49. Ka2 {[%clk 0:00:20.1]} 49... Qxf4 {[%clk
0:00:04]} 50. Rd8 {[%clk 0:00:20.5]} 50... Qc4+ {[%clk 0:00:03.1]} 51. Kb1
{[%clk 0:00:20.2]} 51... Qb3 {[%clk 0:00:04]} 52. Rd1 {[%clk 0:00:20.7]} 52...
g5 {[%clk 0:00:04.5]} 53. Rc1 {[%clk 0:00:20.4]} 53... g4 {[%clk 0:00:05.4]} 54.
Rxc5 {[%clk 0:00:19.6]} 54... Qd1+ {[%clk 0:00:05.1]} 55. Rc1 {[%clk 0:00:20.5]}
55... Qxc1+ {[%clk 0:00:04.4]} 56. Kxc1 {[%clk 0:00:21.4]} 56... h3 {[%clk
0:00:05.3]} 57. b3 {[%clk 0:00:22]} 57... h2 {[%clk 0:00:06.1]} 58. Kb2 {[%clk
0:00:22.3]} 58... h1=Q {[%clk 0:00:06.2]} 59. bxa4 {[%clk 0:00:23.2]} 59... Qa8
{[%clk 0:00:05.6]} 60. Kb3 {[%clk 0:00:23.2]} 60... Qa5 {[%clk 0:00:05.3]} 61.
Ka2 {[%clk 0:00:23]} 61... Qxa4 {[%clk 0:00:06.2]} 62. Kb2 {[%clk 0:00:23.9]}
62... g3 {[%clk 0:00:06.8]} 63. Ka2 {[%clk 0:00:24.8]} 63... g2 {[%clk
0:00:07.7]} 64. Kb2 {[%clk 0:00:25.7]} 64... g1=Q {[%clk 0:00:08.1]} 65. Ka2
{[%clk 0:00:26.6]} 65... Qg2+ {[%clk 0:00:08]} 66. Kb1 {[%clk 0:00:26.4]} 66...
Qd1# {[%clk 0:00:08.9]} 0-1

[Event "*** Titled Tuesday Blitz"]
[Site "Chess.com"]
[Date "2020.05.12"]
[Round "4"]
[White "Shankovskyi"]
[Black "I_Hit_18K_on_BS"]
[Result "0-1"]
[WhiteElo "2547"]
[BlackElo "2231"]
[TimeControl "180+1"]
[EndTime "10:39:55 PDT"]
[Termination "I_Hit_18K_on_BS won on time"]

1. e4 {[%clk 0:03:00.9]} 1... c5 {[%clk 0:02:58.5]} 2. Nf3 {[%clk 0:03:01.2]}
2... d6 {[%clk 0:02:57.3]} 3. d4 {[%clk 0:03:01]} 3... cxd4 {[%clk 0:02:58.2]}
4. Nxd4 {[%clk 0:03:01.7]} 4... Nf6 {[%clk 0:02:56.9]} 5. f3 {[%clk 0:03:02.2]}
5... a6 {[%clk 0:02:51.7]} 6. c4 {[%clk 0:03:02.4]} 6... e5 {[%clk 0:02:51.1]}
7. Nc2 {[%clk 0:03:01.9]} 7... Be6 {[%clk 0:02:49.7]} 8. Nc3 {[%clk 0:03:01.5]}
8... Nbd7 {[%clk 0:02:43.3]} 9. Be3 {[%clk 0:03:01.2]} 9... Rc8 {[%clk
0:02:27.5]} 10. Na3 {[%clk 0:02:56.3]} 10... Be7 {[%clk 0:02:15.7]} 11. Be2
{[%clk 0:02:55.3]} 11... O-O {[%clk 0:02:03.1]} 12. O-O {[%clk 0:02:55.7]} 12...
Qa5 {[%clk 0:01:41.7]} 13. Qd2 {[%clk 0:02:52.9]} 13... Rfe8 {[%clk 0:01:21.6]}
14. Rfd1 {[%clk 0:02:52.3]} 14... Bf8 {[%clk 0:01:14.8]} 15. Bf1 {[%clk
0:02:31.9]} 15... Nb6 {[%clk 0:01:00.2]} 16. Qd3 {[%clk 0:02:03]} 16... Qb4
{[%clk 0:00:50.9]} 17. Nd5 {[%clk 0:01:49.1]} 17... Bxd5 {[%clk 0:00:44.5]} 18.
cxd5 {[%clk 0:01:50]} 18... Na4 {[%clk 0:00:27.7]} 19. Nc4 {[%clk 0:01:25.5]}
19... Nd7 {[%clk 0:00:19]} 20. a3 {[%clk 0:01:22.3]} 20... Qb5 {[%clk
0:00:16.9]} 21. Rdc1 {[%clk 0:00:22.4]} 21... Nxb2 {[%clk 0:00:14.7]} 22. Nxb2
{[%clk 0:00:21.5]} 22... Qxb2 {[%clk 0:00:15.6]} 23. Rcb1 {[%clk 0:00:21.2]}
23... Qc3 {[%clk 0:00:15.1]} 24. Qe2 {[%clk 0:00:15.5]} 24... Nc5 {[%clk
0:00:12.7]} 25. Rc1 {[%clk 0:00:13.8]} 25... Qa5 {[%clk 0:00:12.2]} 26. Rab1
{[%clk 0:00:12.5]} 26... Re7 {[%clk 0:00:10]} 27. Bd2 {[%clk 0:00:08.1]} 27...
Qc7 {[%clk 0:00:07.4]} 28. Bb4 {[%clk 0:00:06.9]} 28... b6 {[%clk 0:00:06.7]}
29. Rc2 {[%clk 0:00:06.3]} 29... Qa7 {[%clk 0:00:05.4]} 30. Rbc1 {[%clk
0:00:07.2]} 30... a5 {[%clk 0:00:04.7]} 31. Bd2 {[%clk 0:00:06.8]} 31... Rec7
{[%clk 0:00:04]} 32. Qf2 {[%clk 0:00:03.8]} 32... Be7 {[%clk 0:00:03.6]} 33. Bb5
{[%clk 0:00:04.2]} 33... Bf6 {[%clk 0:00:03]} 34. Bc6 {[%clk 0:00:04.4]} 34...
Nd3 {[%clk 0:00:02.9]} 35. Qe3 {[%clk 0:00:03.5]} 35... Nxc1 {[%clk 0:00:03.3]}
36. Rxc1 {[%clk 0:00:03.8]} 36... h6 {[%clk 0:00:03.7]} 37. a4 {[%clk
0:00:04.1]} 37... Bg5 {[%clk 0:00:03.9]} 38. Qd3 {[%clk 0:00:04.7]} 38... Bxd2
{[%clk 0:00:04.1]} 39. Qxd2 {[%clk 0:00:05.6]} 39... Qa6 {[%clk 0:00:04.2]} 40.
Qc3 {[%clk 0:00:05]} 40... Qa7 {[%clk 0:00:04.7]} 41. Kf1 {[%clk 0:00:04.6]}
41... Qa6+ {[%clk 0:00:05.2]} 42. Qc4 {[%clk 0:00:04.7]} 42... Qxc4+ {[%clk
0:00:03.9]} 43. Rxc4 {[%clk 0:00:05.6]} 43... Kf8 {[%clk 0:00:04.4]} 44. Rc3
{[%clk 0:00:06.1]} 44... Ke7 {[%clk 0:00:05]} 45. Rb3 {[%clk 0:00:06.9]} 45...
Rxc6 {[%clk 0:00:04.4]} 46. dxc6 {[%clk 0:00:06.9]} 46... Rxc6 {[%clk
0:00:05.3]} 47. Ke2 {[%clk 0:00:07.5]} 47... Kd7 {[%clk 0:00:05.6]} 48. Kd2
{[%clk 0:00:07.1]} 48... Kc7 {[%clk 0:00:05.8]} 49. Rc3 {[%clk 0:00:06.4]} 49...
Rxc3 {[%clk 0:00:05.7]} 50. Kxc3 {[%clk 0:00:07.3]} 50... Kc6 {[%clk 0:00:06.6]}
51. Kc4 {[%clk 0:00:07.6]} 51... f6 {[%clk 0:00:06]} 52. h4 {[%clk 0:00:06.6]}
52... h5 {[%clk 0:00:06]} 53. g3 {[%clk 0:00:06]} 53... g6 {[%clk 0:00:03.3]}
54. g4 {[%clk 0:00:06.2]} 54... Kc7 {[%clk 0:00:03.2]} 55. Kd5 {[%clk
0:00:02.5]} 55... Kd7 {[%clk 0:00:03.2]} 56. g5 {[%clk 0:00:01.1]} 56... fxg5
{[%clk 0:00:02.9]} 57. hxg5 {[%clk 0:00:02]} 57... h4 {[%clk 0:00:03.3]} 0-1

[Event "*** Titled Tuesday Blitz"]
[Site "Chess.com"]
[Date "2020.05.12"]
[Round "4"]
[White "BaMBoMaTTo"]
[Black "OparinGrigoriy"]
[Result "1/2-1/2"]
[WhiteElo "2644"]
[BlackElo "2917"]
[TimeControl "180+1"]
[EndTime "10:39:56 PDT"]
[Termination "Game drawn by repetition"]

1. e4 {[%clk 0:03:00]} 1... c6 {[%clk 0:02:59.2]} 2. d4 {[%clk 0:02:59.9]} 2...
d5 {[%clk 0:03:00.1]} 3. e5 {[%clk 0:02:59.8]} 3... c5 {[%clk 0:03:00.3]} 4.
dxc5 {[%clk 0:02:59.7]} 4... e6 {[%clk 0:03:00.7]} 5. a3 {[%clk 0:02:58.7]} 5...
Bxc5 {[%clk 0:03:01.1]} 6. b4 {[%clk 0:02:56.8]} 6... Bb6 {[%clk 0:03:00]} 7.
Nf3 {[%clk 0:02:56.4]} 7... Ne7 {[%clk 0:03:00.6]} 8. Bd3 {[%clk 0:02:51.8]}
8... Ng6 {[%clk 0:03:00.5]} 9. O-O {[%clk 0:02:46.4]} 9... Nc6 {[%clk
0:03:00.9]} 10. Bb2 {[%clk 0:02:46.2]} 10... Nf4 {[%clk 0:03:00.5]} 11. c4
{[%clk 0:02:46.3]} 11... Bc7 {[%clk 0:03:00.7]} 12. c5 {[%clk 0:02:28.6]} 12...
a5 {[%clk 0:03:00.5]} 13. b5 {[%clk 0:02:27.2]} 13... Nxe5 {[%clk 0:03:01]} 14.
Nxe5 {[%clk 0:01:52.3]} 14... Qg5 {[%clk 0:03:00.9]} 15. Qg4 {[%clk 0:01:52.9]}
15... Qxg4 {[%clk 0:03:01.3]} 16. Nxg4 {[%clk 0:01:53.8]} 16... e5 {[%clk
0:03:01.9]} 17. Nxe5 {[%clk 0:01:49.8]} 17... Bxe5 {[%clk 0:03:00.3]} 18. Bxe5
{[%clk 0:01:50.7]} 18... Nxd3 {[%clk 0:03:01.1]} 19. Bd6 {[%clk 0:01:50]} 19...
Be6 {[%clk 0:02:32.4]} 20. Nc3 {[%clk 0:01:50.2]} 20... Nb2 {[%clk 0:01:59.5]}
21. Rfe1 {[%clk 0:01:34.5]} 21... Kd7 {[%clk 0:01:32.1]} 22. Be5 {[%clk
0:01:14.9]} 22... Nd3 {[%clk 0:01:24.5]} 23. Re3 {[%clk 0:01:08.7]} 23... Nxc5
{[%clk 0:00:53.1]} 24. Bxg7 {[%clk 0:01:08.5]} 24... Rhg8 {[%clk 0:00:53.2]} 25.
Be5 {[%clk 0:01:04.2]} 25... Ne4 {[%clk 0:00:18.5]} 26. Nxe4 {[%clk 0:00:45.8]}
26... dxe4 {[%clk 0:00:19.4]} 27. Rd1+ {[%clk 0:00:46]} 27... Ke7 {[%clk
0:00:19.7]} 28. Bd6+ {[%clk 0:00:41.4]} 28... Kf6 {[%clk 0:00:20]} 29. Rxe4
{[%clk 0:00:41.8]} 29... Rac8 {[%clk 0:00:19.3]} 30. Rf4+ {[%clk 0:00:32.1]}
30... Kg6 {[%clk 0:00:19.5]} 31. Be5 {[%clk 0:00:32.2]} 31... h6 {[%clk
0:00:17.3]} 32. Rfd4 {[%clk 0:00:19.4]} 32... Rc5 {[%clk 0:00:15.7]} 33. Bf4
{[%clk 0:00:17.1]} 33... Rxb5 {[%clk 0:00:15.1]} 34. f3 {[%clk 0:00:17.5]} 34...
Rb3 {[%clk 0:00:13.1]} 35. R4d3 {[%clk 0:00:17.7]} 35... a4 {[%clk 0:00:12.6]}
36. Kf2 {[%clk 0:00:17.9]} 36... Rc8 {[%clk 0:00:11.2]} 37. g4 {[%clk
0:00:18.3]} 37... Rcc3 {[%clk 0:00:09.4]} 38. Rxc3 {[%clk 0:00:17.9]} 38... Rxc3
{[%clk 0:00:10.3]} 39. Bd6 {[%clk 0:00:18.3]} 39... Bb3 {[%clk 0:00:08.5]} 40.
Rd4 {[%clk 0:00:17.8]} 40... Bc4 {[%clk 0:00:07.8]} 41. Bb4 {[%clk 0:00:16.7]}
41... Rc2+ {[%clk 0:00:08.2]} 42. Kg3 {[%clk 0:00:17.2]} 42... b5 {[%clk
0:00:08.5]} 43. h4 {[%clk 0:00:16.8]} 43... f6 {[%clk 0:00:08.4]} 44. Rd6 {[%clk
0:00:15.4]} 44... Kf7 {[%clk 0:00:07.3]} 45. h5 {[%clk 0:00:13.6]} 45... Re2
{[%clk 0:00:07.2]} 46. Bc3 {[%clk 0:00:13.4]} 46... Re6 {[%clk 0:00:07.7]} 47.
Rxe6 {[%clk 0:00:12.5]} 47... Kxe6 {[%clk 0:00:08.6]} 48. Bd2 {[%clk 0:00:13.2]}
48... f5 {[%clk 0:00:07.2]} 49. Bxh6 {[%clk 0:00:12.1]} 49... fxg4 {[%clk
0:00:07.9]} 50. fxg4 {[%clk 0:00:13]} 50... Be2 {[%clk 0:00:08.2]} 51. Bd2
{[%clk 0:00:12.7]} 51... Bd1 {[%clk 0:00:07.8]} 52. Kf4 {[%clk 0:00:12.6]} 52...
Kf6 {[%clk 0:00:08.3]} 53. Bc3+ {[%clk 0:00:10.2]} 53... Ke6 {[%clk 0:00:07.6]}
54. h6 {[%clk 0:00:09.8]} 54... Bc2 {[%clk 0:00:07.5]} 55. Kg5 {[%clk
0:00:09.8]} 55... Kf7 {[%clk 0:00:07.9]} 56. Kf4 {[%clk 0:00:08.9]} 56... Kg6
{[%clk 0:00:08.3]} 57. g5 {[%clk 0:00:09.5]} 57... Bb3 {[%clk 0:00:08.6]} 58.
Bf6 {[%clk 0:00:10]} 58... Bc4 {[%clk 0:00:09.1]} 59. Ke5 {[%clk 0:00:10.5]}
59... Kh7 {[%clk 0:00:09.4]} 60. Kd4 {[%clk 0:00:11]} 60... Kg6 {[%clk
0:00:09.9]} 61. Kc5 {[%clk 0:00:11.4]} 61... Kh7 {[%clk 0:00:10.5]} 62. Kb4
{[%clk 0:00:11.7]} 62... Kg6 {[%clk 0:00:11.4]} 63. Kc5 {[%clk 0:00:12.1]} 63...
Kh7 {[%clk 0:00:12.3]} 64. Kb4 {[%clk 0:00:12.6]} 64... Kg6 {[%clk 0:00:13.2]}
65. Kc5 {[%clk 0:00:13]} 1/2-1/2

[Event "*** Titled Tuesday Blitz"]
[Site "Chess.com"]
[Date "2020.05.12"]
[Round "4"]
[White "26andrej26"]
[Black "olomi007"]
[Result "1-0"]
[WhiteElo "2483"]
[BlackElo "2639"]
[TimeControl "180+1"]
[EndTime "10:39:57 PDT"]
[Termination "26andrej26 won on time"]

1. e4 {[%clk 0:02:33.7]} 1... c5 {[%clk 0:02:58.1]} 2. Nf3 {[%clk 0:02:32.1]}
2... d6 {[%clk 0:02:57.2]} 3. d4 {[%clk 0:02:33]} 3... cxd4 {[%clk 0:02:58]} 4.
Nxd4 {[%clk 0:02:33.9]} 4... Nf6 {[%clk 0:02:57.9]} 5. Nc3 {[%clk 0:02:32.8]}
5... g6 {[%clk 0:02:58.5]} 6. Be2 {[%clk 0:02:29.8]} 6... Bg7 {[%clk 0:02:58.4]}
7. Be3 {[%clk 0:02:27.3]} 7... Nc6 {[%clk 0:02:58.1]} 8. O-O {[%clk 0:02:27.1]}
8... O-O {[%clk 0:02:57.7]} 9. f4 {[%clk 0:02:24.9]} 9... Qb6 {[%clk 0:02:57.7]}
10. Rb1 {[%clk 0:02:14.4]} 10... Nxe4 {[%clk 0:02:26.7]} 11. Nf5 {[%clk
0:01:59.9]} 11... Nxc3 {[%clk 0:02:18.1]} 12. bxc3 {[%clk 0:01:57.5]} 12... Qa5
{[%clk 0:02:17.2]} 13. Nxg7 {[%clk 0:01:56.8]} 13... Kxg7 {[%clk 0:02:17.6]} 14.
f5 {[%clk 0:01:50.2]} 14... Bxf5 {[%clk 0:02:12.2]} 15. Rb5 {[%clk 0:01:48.3]}
15... Qxc3 {[%clk 0:02:10.8]} 16. Rf3 {[%clk 0:01:34.5]} 16... Qxc2 {[%clk
0:02:02.1]} 17. Qa1+ {[%clk 0:01:31.5]} 17... e5 {[%clk 0:01:58.2]} 18. Bd1
{[%clk 0:01:24.2]} 18... Qc4 {[%clk 0:01:54.3]} 19. Rxb7 {[%clk 0:01:18.2]}
19... Bg4 {[%clk 0:01:47.1]} 20. Bb3 {[%clk 0:01:14.2]} 20... Qe2 {[%clk
0:01:34.3]} 21. Rfxf7+ {[%clk 0:01:11]} 21... Rxf7 {[%clk 0:01:34.5]} 22. Rxf7+
{[%clk 0:01:10.7]} 22... Kh8 {[%clk 0:01:30.2]} 23. Bh6 {[%clk 0:01:10.3]} 23...
Rg8 {[%clk 0:01:25]} 24. Rc7 {[%clk 0:01:05.2]} 24... Nd4 {[%clk 0:00:54.1]} 25.
Bxg8 {[%clk 0:00:45.4]} 25... Bh3 {[%clk 0:00:53.6]} 26. Rxh7+ {[%clk
0:00:34.8]} 26... Kxg8 {[%clk 0:00:52.5]} 27. Rg7+ {[%clk 0:00:35.7]} 27... Kh8
{[%clk 0:00:52.5]} 28. Qf1 {[%clk 0:00:35.5]} 28... Qxf1+ {[%clk 0:00:45.4]} 29.
Kxf1 {[%clk 0:00:36.4]} 29... Bf5 {[%clk 0:00:44.4]} 30. Rxa7 {[%clk 0:00:35.1]}
30... d5 {[%clk 0:00:39.2]} 31. Bg7+ {[%clk 0:00:33.5]} 31... Kg8 {[%clk
0:00:37.8]} 32. Bxe5 {[%clk 0:00:34.4]} 32... Nb5 {[%clk 0:00:36.4]} 33. Rb7
{[%clk 0:00:25.4]} 33... d4 {[%clk 0:00:31.7]} 34. Ke1 {[%clk 0:00:11.4]} 34...
Nc3 {[%clk 0:00:28.6]} 35. a3 {[%clk 0:00:11]} 35... Be4 {[%clk 0:00:23.6]} 36.
Rg7+ {[%clk 0:00:08.4]} 36... Kf8 {[%clk 0:00:23.4]} 37. Bxd4 {[%clk 0:00:08.7]}
37... Nb5 {[%clk 0:00:23.5]} 38. Bb2 {[%clk 0:00:05]} 38... Nxa3 {[%clk
0:00:20.2]} 39. Rc7 {[%clk 0:00:03.9]} 39... Nb5 {[%clk 0:00:16.9]} 40. Rc5
{[%clk 0:00:03.4]} 40... Na7 {[%clk 0:00:14.1]} 41. Re5 {[%clk 0:00:03.6]} 41...
Bxg2 {[%clk 0:00:12.1]} 42. Kf2 {[%clk 0:00:03.4]} 42... Bh1 {[%clk 0:00:12.1]}
43. Kg3 {[%clk 0:00:03.6]} 43... Bc6 {[%clk 0:00:06.9]} 44. Re6 {[%clk
0:00:03.6]} 44... Bd5 {[%clk 0:00:06.6]} 45. Rxg6 {[%clk 0:00:03]} 45... Nc6
{[%clk 0:00:06.9]} 46. Rg7 {[%clk 0:00:03.4]} 46... Be6 {[%clk 0:00:06.1]} 47.
Rg5 {[%clk 0:00:03.8]} 47... Ne7 {[%clk 0:00:05.6]} 48. h4 {[%clk 0:00:04]}
48... Kf7 {[%clk 0:00:06]} 49. h5 {[%clk 0:00:03.9]} 49... Nf5+ {[%clk
0:00:06.4]} 50. Kf4 {[%clk 0:00:03.9]} 50... Ne7 {[%clk 0:00:06.2]} 51. Rg7+
{[%clk 0:00:04]} 51... Kf8 {[%clk 0:00:06.2]} 52. h6 {[%clk 0:00:04.2]} 52...
Bg8 {[%clk 0:00:06.5]} 53. h7 {[%clk 0:00:03.9]} 53... Bxh7 {[%clk 0:00:06.9]}
54. Rxh7 {[%clk 0:00:04.4]} 54... Ng6+ {[%clk 0:00:07.3]} 55. Kf5 {[%clk
0:00:04.7]} 55... Ne7+ {[%clk 0:00:07.1]} 56. Ke6 {[%clk 0:00:03.8]} 56... Ng6
{[%clk 0:00:06.1]} 57. Rf7+ {[%clk 0:00:03.6]} 57... Ke8 {[%clk 0:00:05.2]} 58.
Bg7 {[%clk 0:00:04.3]} 58... Nf4+ {[%clk 0:00:04.9]} 59. Rxf4 {[%clk 0:00:04.3]}
1-0

[Event "*** Titled Tuesday Blitz"]
[Site "Chess.com"]
[Date "2020.05.12"]
[Round "4"]
[White "FedaMaster"]
[Black "Maybe00"]
[Result "1-0"]
[WhiteElo "2543"]
[BlackElo "2824"]
[TimeControl "180+1"]
[EndTime "10:40:00 PDT"]
[Termination "FedaMaster won by resignation"]

1. e4 {[%clk 0:02:59.9]} 1... e5 {[%clk 0:02:59.9]} 2. Nf3 {[%clk 0:02:59]} 2...
Nc6 {[%clk 0:03:00.1]} 3. Bb5 {[%clk 0:02:59.4]} 3... a6 {[%clk 0:02:57.2]} 4.
Bxc6 {[%clk 0:02:59.8]} 4... dxc6 {[%clk 0:02:56.9]} 5. O-O {[%clk 0:03:00.7]}
5... f6 {[%clk 0:02:57.1]} 6. d4 {[%clk 0:03:00.9]} 6... exd4 {[%clk 0:02:57.5]}
7. Nxd4 {[%clk 0:03:01.8]} 7... c5 {[%clk 0:02:57.9]} 8. Ne2 {[%clk 0:03:02.5]}
8... Qxd1 {[%clk 0:02:57.6]} 9. Rxd1 {[%clk 0:03:03.4]} 9... Bd7 {[%clk
0:02:58.1]} 10. Bf4 {[%clk 0:03:03.5]} 10... O-O-O {[%clk 0:02:57.8]} 11. Nbc3
{[%clk 0:03:04.4]} 11... Re8 {[%clk 0:02:49.8]} 12. f3 {[%clk 0:03:02.5]} 12...
Bc6 {[%clk 0:02:44.4]} 13. Nd5 {[%clk 0:03:00]} 13... Bd6 {[%clk 0:01:50.1]} 14.
Bxd6 {[%clk 0:01:57.4]} 14... cxd6 {[%clk 0:01:51]} 15. Ne3 {[%clk 0:01:58.3]}
15... Ne7 {[%clk 0:01:13.8]} 16. Rxd6 {[%clk 0:01:55.4]} 16... Kc7 {[%clk
0:01:14.3]} 17. Rad1 {[%clk 0:01:52.1]} 17... Nc8 {[%clk 0:01:10.1]} 18. R6d2
{[%clk 0:01:51.2]} 18... g6 {[%clk 0:01:07]} 19. Nf4 {[%clk 0:01:45.6]} 19...
Nb6 {[%clk 0:01:02.7]} 20. Nfd5+ {[%clk 0:01:43.4]} 20... Nxd5 {[%clk
0:00:53.2]} 21. Nxd5+ {[%clk 0:01:44.3]} 21... Bxd5 {[%clk 0:00:52.3]} 22. Rxd5
{[%clk 0:01:45.2]} 22... c4 {[%clk 0:00:33.6]} 23. Rc5+ {[%clk 0:01:41.4]} 23...
Kb6 {[%clk 0:00:34]} 24. Rxc4 {[%clk 0:01:42.3]} 24... Re6 {[%clk 0:00:34.5]}
25. Rcd4 {[%clk 0:01:38.5]} 25... Kc7 {[%clk 0:00:33.4]} 26. Rd7+ {[%clk
0:01:38]} 26... Kc8 {[%clk 0:00:33.9]} 27. R7d6 {[%clk 0:01:37.4]} 27... Rhe8
{[%clk 0:00:33.3]} 28. Rxe6 {[%clk 0:01:37.4]} 28... Rxe6 {[%clk 0:00:34.2]} 29.
c4 {[%clk 0:01:34.3]} 29... Kc7 {[%clk 0:00:33]} 30. Kf2 {[%clk 0:01:28.5]}
30... a5 {[%clk 0:00:33.4]} 31. Rd5 {[%clk 0:01:26.1]} 31... a4 {[%clk
0:00:33.6]} 32. b3 {[%clk 0:01:21.4]} 32... axb3 {[%clk 0:00:33.5]} 33. axb3
{[%clk 0:01:22.3]} 33... Ra6 {[%clk 0:00:34.1]} 34. Rd2 {[%clk 0:01:19.1]} 34...
Ra3 {[%clk 0:00:33.7]} 35. Rd3 {[%clk 0:01:16.3]} 35... Ra2+ {[%clk 0:00:33.4]}
36. Kg3 {[%clk 0:01:16.8]} 36... Rb2 {[%clk 0:00:33.9]} 37. f4 {[%clk
0:01:16.2]} 37... Rb1 {[%clk 0:00:29.2]} 38. Kf2 {[%clk 0:01:14]} 38... Ra1
{[%clk 0:00:23.8]} 39. h4 {[%clk 0:01:09.1]} 39... Kc6 {[%clk 0:00:21.9]} 40. e5
{[%clk 0:01:08]} 40... fxe5 {[%clk 0:00:22]} 41. fxe5 {[%clk 0:01:08.9]} 41...
Ra5 {[%clk 0:00:22.1]} 42. Re3 {[%clk 0:01:08.5]} 42... Kd7 {[%clk 0:00:22.4]}
43. e6+ {[%clk 0:01:08.3]} 43... Ke7 {[%clk 0:00:22.6]} 44. Kf3 {[%clk
0:01:06.7]} 44... Rf5+ {[%clk 0:00:22.8]} 45. Ke2 {[%clk 0:01:05.2]} 45... h5
{[%clk 0:00:20.4]} 46. Kd3 {[%clk 0:01:03.6]} 46... Rf2 {[%clk 0:00:20.2]} 47.
g3 {[%clk 0:01:03.4]} 47... Ra2 {[%clk 0:00:19.4]} 48. Kc3 {[%clk 0:01:02.2]}
48... Ra5 {[%clk 0:00:19.4]} 49. Kb4 {[%clk 0:01:02.5]} 49... Rf5 {[%clk
0:00:15.6]} 50. c5 {[%clk 0:01:01.2]} 50... g5 {[%clk 0:00:16.2]} 51. hxg5
{[%clk 0:01:00.8]} 51... Rxg5 {[%clk 0:00:17.1]} 52. Kb5 {[%clk 0:01:01.4]}
52... Rf5 {[%clk 0:00:14.7]} 53. Kb6 {[%clk 0:01:01.2]} 53... Rg5 {[%clk
0:00:14.6]} 54. b4 {[%clk 0:01:00.9]} 54... Rg4 {[%clk 0:00:15.1]} 55. b5 {[%clk
0:00:58.4]} 55... Rb4 {[%clk 0:00:14.2]} 56. Kxb7 {[%clk 0:00:52.8]} 56... Rxb5+
{[%clk 0:00:14.1]} 57. Kc6 {[%clk 0:00:53.2]} 57... Rb4 {[%clk 0:00:14.5]} 58.
Kc7 {[%clk 0:00:52]} 58... h4 {[%clk 0:00:15.1]} 59. gxh4 {[%clk 0:00:51.2]}
59... Rxh4 {[%clk 0:00:15.5]} 60. c6 {[%clk 0:00:50.4]} 60... Rb4 {[%clk
0:00:16.1]} 61. Kc8 {[%clk 0:00:49]} 61... Rb6 {[%clk 0:00:15.2]} 62. c7 {[%clk
0:00:47.7]} 62... Rb4 {[%clk 0:00:15.1]} 63. Re1 {[%clk 0:00:44.6]} 63... Rb3
{[%clk 0:00:14.7]} 64. Rh1 {[%clk 0:00:33.7]} 64... Rb2 {[%clk 0:00:09.8]} 65.
Rh7+ {[%clk 0:00:28.9]} 65... Ke8 {[%clk 0:00:10.2]} 66. Rd7 {[%clk 0:00:26.6]}
66... Rb3 {[%clk 0:00:09.2]} 67. Rd6 {[%clk 0:00:26.5]} 67... Rb2 {[%clk
0:00:08.8]} 68. Ra6 {[%clk 0:00:27.1]} 68... Ke7 {[%clk 0:00:08.5]} 69. Ra7
{[%clk 0:00:25.4]} 69... Rh2 {[%clk 0:00:03.2]} 70. Kb8 {[%clk 0:00:24.9]} 70...
Rb2+ {[%clk 0:00:02.9]} 71. Rb7 {[%clk 0:00:24.7]} 1-0